[Event "Titled Tuesday Blitz April 19 Early 2022"]
[White "Dreev, Aleksey"]
[Black "Chernobay, Artem"]
[WhiteFideId "4100107"]
[BlackFideId "4167406"]
[WhiteElo "2625"]
[BlackElo "2473"]
[Result "1-0"]
[Round "02"]
[TimeControl "180+1"]
[Date "2022.04.19"]
[WhiteClock "0:00:14"]
[BlackClock "0:00:06"]

1. d4 {[%clk 0:03:00]}  Nf6 {[%clk 0:02:56]} 2. Nf3 {[%clk 0:03:00]}  d5 {[%clk 0:02:54]} 3. c4 {[%clk 0:02:59]}  e6 {[%clk 0:02:54]} 4. Nc3 {[%clk 0:02:59]}  a6 {[%clk 0:02:53]} 5. cxd5 {[%clk 0:02:58]}  exd5 {[%clk 0:02:54]} 6. Bg5 {[%clk 0:02:59]}  Be6 {[%clk 0:02:52]} 7. e3 {[%clk 0:02:57]}  c6 {[%clk 0:02:48]} 8. Bd3 {[%clk 0:02:57]}  Nbd7 {[%clk 0:02:47]} 9. Qc2 {[%clk 0:02:58]}  Bd6 {[%clk 0:02:44]} 10. O-O {[%clk 0:02:55]}  h6 {[%clk 0:02:43]} 11. Bf4 {[%clk 0:02:55]}  Qc7 {[%clk 0:02:40]} 12. Qd2 {[%clk 0:02:43]}  O-O {[%clk 0:02:36]} 13. Rac1 {[%clk 0:02:41]}  Ne8 {[%clk 0:02:26]} 14. h3 {[%clk 0:02:31]}  Bxf4 {[%clk 0:01:58]} 15. exf4 {[%clk 0:02:32]}  Nd6 {[%clk 0:01:54]} 16. Ne5 {[%clk 0:02:26]}  f6 {[%clk 0:01:44]} 17. Ng6 {[%clk 0:02:16]}  Rfe8 {[%clk 0:01:44]} 18. Rfe1 {[%clk 0:02:17]}  Nb6 {[%clk 0:01:35]} 19. Nh4 {[%clk 0:02:03]}  Qd7 {[%clk 0:01:16]} 20. Bb1 {[%clk 0:01:57]}  f5 {[%clk 0:00:50]} 21. Ng6 {[%clk 0:01:56]}  Ne4 {[%clk 0:00:45]} 22. Qd3 {[%clk 0:01:55]}  Nc4 {[%clk 0:00:42]} 23. b3 {[%clk 0:01:50]}  Na3 {[%clk 0:00:42]} 24. Ne5 {[%clk 0:01:49]}  Qd6 {[%clk 0:00:41]} 25. Na4 {[%clk 0:01:40]}  a5 {[%clk 0:00:25]} 26. f3 {[%clk 0:01:40]}  Nf6 {[%clk 0:00:23]} 27. Nc5 {[%clk 0:01:40]}  Nxb1 {[%clk 0:00:19]} 28. Rxb1 {[%clk 0:01:39]}  b6 {[%clk 0:00:17]} 29. Nxe6 {[%clk 0:01:30]}  Qxe6 {[%clk 0:00:18]} 30. Rbc1 {[%clk 0:01:28]}  Rac8 {[%clk 0:00:18]} 31. Qd2 {[%clk 0:01:26]}  Qd6 {[%clk 0:00:15]} 32. Re3 {[%clk 0:01:24]}  c5 {[%clk 0:00:14]} 33. Rce1 {[%clk 0:01:25]}  Nh5 {[%clk 0:00:13]} 34. Rd3 {[%clk 0:01:21]}  c4 {[%clk 0:00:13]} 35. bxc4 {[%clk 0:01:00]}  dxc4 {[%clk 0:00:14]} 36. Rde3 {[%clk 0:00:51]}  Red8 {[%clk 0:00:13]} 37. Qc2 {[%clk 0:00:46]}  Qxd4 {[%clk 0:00:12]} 38. Qxf5 {[%clk 0:00:45]}  Nxf4 {[%clk 0:00:11]} 39. Qf7+ {[%clk 0:00:42]}  Kh8 {[%clk 0:00:12]} 40. Qxf4 {[%clk 0:00:40]}  Qxf4 {[%clk 0:00:12]} 41. Ng6+ {[%clk 0:00:40]}  Kh7 {[%clk 0:00:13]} 42. Nxf4 {[%clk 0:00:41]}  c3 {[%clk 0:00:13]} 43. Ne2 {[%clk 0:00:30]}  c2 {[%clk 0:00:12]} 44. Nc1 {[%clk 0:00:30]}  Rd4 {[%clk 0:00:10]} 45. Kf2 {[%clk 0:00:29]}  b5 {[%clk 0:00:10]} 46. Re5 {[%clk 0:00:28]}  Rb4 {[%clk 0:00:09]} 47. Ke3 {[%clk 0:00:26]}  a4 {[%clk 0:00:09]} 48. Rd5 {[%clk 0:00:22]}  Rb1 {[%clk 0:00:08]} 49. Kd2 {[%clk 0:00:19]}  b4 {[%clk 0:00:08]} 50. Re3 {[%clk 0:00:19]}  b3 {[%clk 0:00:07]} 51. axb3 {[%clk 0:00:19]}  axb3 {[%clk 0:00:08]} 52. Rxb3 {[%clk 0:00:18]}  Ra1 {[%clk 0:00:07]} 53. Rb2 {[%clk 0:00:18]}  Ra4 {[%clk 0:00:05]} 54. Rxc2 {[%clk 0:00:17]}  Re8 {[%clk 0:00:05]} 55. Nd3 {[%clk 0:00:15]}  Ra3 {[%clk 0:00:05]} 56. Rd4 {[%clk 0:00:14]}  Ra1 {[%clk 0:00:06]} 57. Re4 {[%clk 0:00:14]}  Rg1 {[%clk 0:00:06]} 58. Rxe8 {[%clk 0:00:14]} 1-0


[Site "https://www.chess.com"]

[Event "Titled Tuesday Blitz April 19 Early 2022"]
[White "Dubov, Daniil"]
[Black "Dronavalli, Harika"]
[WhiteFideId "24126055"]
[BlackFideId "5015197"]
[WhiteElo "2791"]
[BlackElo "2382"]
[Result "1-0"]
[Round "02"]
[TimeControl "180+1"]
[Date "2022.04.19"]
[WhiteClock "0:00:10"]
[BlackClock "0:00:15"]

1. d4 {[%clk 0:03:00]}  Nf6 {[%clk 0:02:59]} 2. Nf3 {[%clk 0:03:00]}  c5 {[%clk 0:02:56]} 3. d5 {[%clk 0:02:59]}  b5 {[%clk 0:02:53]} 4. c4 {[%clk 0:02:58]}  g6 {[%clk 0:02:44]} 5. cxb5 {[%clk 0:02:54]}  a6 {[%clk 0:02:44]} 6. b6 {[%clk 0:02:54]}  Bg7 {[%clk 0:02:34]} 7. Nc3 {[%clk 0:02:52]}  e6 {[%clk 0:02:26]} 8. e4 {[%clk 0:02:49]}  O-O {[%clk 0:02:20]} 9. Be2 {[%clk 0:02:29]}  Qxb6 {[%clk 0:02:18]} 10. O-O {[%clk 0:02:28]}  exd5 {[%clk 0:02:18]} 11. e5 {[%clk 0:02:27]}  Ne4 {[%clk 0:01:37]} 12. Nxd5 {[%clk 0:02:25]}  Qb7 {[%clk 0:01:25]} 13. Qd3 {[%clk 0:02:21]}  f5 {[%clk 0:01:20]} 14. Ne7+ {[%clk 0:01:52]}  Kh8 {[%clk 0:01:20]} 15. Ng5 {[%clk 0:01:51]}  Nxg5 {[%clk 0:01:13]} 16. Bxg5 {[%clk 0:01:50]}  Nc6 {[%clk 0:01:13]} 17. e6 {[%clk 0:01:07]}  Ne5 {[%clk 0:01:00]} 18. Qh3 {[%clk 0:00:58]}  Qxb2 {[%clk 0:00:49]} 19. Bf3 {[%clk 0:00:50]}  Bb7 {[%clk 0:00:41]} 20. Bxb7 {[%clk 0:00:47]}  Qxb7 {[%clk 0:00:39]} 21. f4 {[%clk 0:00:44]}  Ng4 {[%clk 0:00:26]} 22. Nxg6+ {[%clk 0:00:44]}  Kg8 {[%clk 0:00:26]} 23. Ne7+ {[%clk 0:00:45]}  Kh8 {[%clk 0:00:25]} 24. Ng6+ {[%clk 0:00:45]}  Kg8 {[%clk 0:00:25]} 25. Nxf8 {[%clk 0:00:46]}  Rxf8 {[%clk 0:00:25]} 26. e7 {[%clk 0:00:43]}  Re8 {[%clk 0:00:25]} 27. Qh5 {[%clk 0:00:41]}  Qc8 {[%clk 0:00:25]} 28. Rae1 {[%clk 0:00:34]}  Bd4+ {[%clk 0:00:18]} 29. Kh1 {[%clk 0:00:34]}  Nf2+ {[%clk 0:00:19]} 30. Rxf2 {[%clk 0:00:33]}  Bxf2 {[%clk 0:00:20]} 31. Re2 {[%clk 0:00:29]}  Qb8 {[%clk 0:00:19]} 32. Rd2 {[%clk 0:00:19]}  d5 {[%clk 0:00:16]} 33. h3 {[%clk 0:00:14]}  Bd4 {[%clk 0:00:14]} 34. Qf3 {[%clk 0:00:12]}  Qb1+ {[%clk 0:00:14]} 35. Rd1 {[%clk 0:00:11]}  Qe4 {[%clk 0:00:15]} 36. Qh5 {[%clk 0:00:11]}  Qxe7 {[%clk 0:00:15]} 37. Bxe7 {[%clk 0:00:10]} 1-0


[Site "https://www.chess.com"]

[Event "Titled Tuesday Blitz April 19 Early 2022"]
[White "Esipenko, Andrey"]
[Black "Vokarev, Sergey"]
[WhiteFideId "24175439"]
[BlackFideId "4119711"]
[WhiteElo "2617"]
[BlackElo "2343"]
[Result "1/2-1/2"]
[Round "02"]
[TimeControl "180+1"]
[Date "2022.04.19"]
[WhiteClock "0:00:03"]
[BlackClock "0:00:48"]

1. e4 {[%clk 0:02:51]}  c5 {[%clk 0:02:59]} 2. Nf3 {[%clk 0:02:51]}  Nc6 {[%clk 0:02:59]} 3. d4 {[%clk 0:02:50]}  cxd4 {[%clk 0:02:59]} 4. Nxd4 {[%clk 0:02:51]}  Nf6 {[%clk 0:02:59]} 5. Nc3 {[%clk 0:02:51]}  g6 {[%clk 0:02:59]} 6. Nxc6 {[%clk 0:02:37]}  dxc6 {[%clk 0:03:00]} 7. Qxd8+ {[%clk 0:02:35]}  Kxd8 {[%clk 0:03:01]} 8. Be3 {[%clk 0:02:32]}  e5 {[%clk 0:02:59]} 9. Bc4 {[%clk 0:02:30]}  Ke8 {[%clk 0:02:58]} 10. a4 {[%clk 0:02:28]}  Nd7 {[%clk 0:02:57]} 11. a5 {[%clk 0:02:22]}  Bc5 {[%clk 0:02:52]} 12. Bh6 {[%clk 0:02:18]}  Bf8 {[%clk 0:02:52]} 13. Bd2 {[%clk 0:02:18]}  Bc5 {[%clk 0:02:49]} 14. h4 {[%clk 0:02:15]}  h5 {[%clk 0:02:47]} 15. Nd1 {[%clk 0:02:06]}  Ke7 {[%clk 0:02:40]} 16. b4 {[%clk 0:02:02]}  Bd6 {[%clk 0:02:40]} 17. Ne3 {[%clk 0:01:59]}  Nf8 {[%clk 0:02:37]} 18. Bd3 {[%clk 0:01:55]}  Ne6 {[%clk 0:02:29]} 19. c3 {[%clk 0:01:28]}  Bc7 {[%clk 0:01:55]} 20. g3 {[%clk 0:01:27]}  Rd8 {[%clk 0:01:52]} 21. Ke2 {[%clk 0:01:27]}  Bd7 {[%clk 0:01:45]} 22. Rhb1 {[%clk 0:01:13]}  b5 {[%clk 0:01:44]} 23. axb6 {[%clk 0:01:11]}  axb6 {[%clk 0:01:44]} 24. Nc4 {[%clk 0:00:53]}  b5 {[%clk 0:01:34]} 25. Na5 {[%clk 0:00:51]}  c5 {[%clk 0:01:28]} 26. Be3 {[%clk 0:00:48]}  c4 {[%clk 0:01:26]} 27. Bc2 {[%clk 0:00:48]}  Ra6 {[%clk 0:01:23]} 28. Nb7 {[%clk 0:00:45]}  Rda8 {[%clk 0:01:19]} 29. Rxa6 {[%clk 0:00:44]}  Rxa6 {[%clk 0:01:19]} 30. Rd1 {[%clk 0:00:45]}  Bc8 {[%clk 0:01:12]} 31. Nc5 {[%clk 0:00:42]}  Nxc5 {[%clk 0:01:11]} 32. Bxc5+ {[%clk 0:00:43]}  Bd6 {[%clk 0:01:11]} 33. Bxd6+ {[%clk 0:00:35]}  Rxd6 {[%clk 0:01:10]} 34. Rxd6 {[%clk 0:00:35]}  Kxd6 {[%clk 0:01:09]} 35. f4 {[%clk 0:00:32]}  f6 {[%clk 0:01:01]} 36. Ke3 {[%clk 0:00:30]}  Bg4 {[%clk 0:00:59]} 37. f5 {[%clk 0:00:20]}  g5 {[%clk 0:00:50]} 38. hxg5 {[%clk 0:00:07]}  fxg5 {[%clk 0:00:50]} 39. Kf2 {[%clk 0:00:08]}  Ke7 {[%clk 0:00:49]} 40. Kg2 {[%clk 0:00:05]}  Kf6 {[%clk 0:00:49]} 41. Kf2 {[%clk 0:00:05]}  Ke7 {[%clk 0:00:48]} 42. Kg2 {[%clk 0:00:05]}  Kf6 {[%clk 0:00:48]} 43. Kf2 {[%clk 0:00:03]}  Ke7 {[%clk 0:00:48]} 1/2-1/2


[Site "https://www.chess.com"]

[Event "Titled Tuesday Blitz April 19 Early 2022"]
[White "Ezat, Mohamed"]
[Black "Moskalenko, Alexander"]
[WhiteFideId "10600906"]
[BlackFideId "4155351"]
[WhiteElo "2386"]
[BlackElo "2434"]
[Result "0-1"]
[Round "02"]
[TimeControl "180+1"]
[Date "2022.04.19"]
[WhiteClock "0:00:51"]
[BlackClock "0:02:09"]

1. d4 {[%clk 0:03:00]}  Nf6 {[%clk 0:02:59]} 2. c4 {[%clk 0:03:00]}  g6 {[%clk 0:03:00]} 3. Nc3 {[%clk 0:02:59]}  Bg7 {[%clk 0:03:01]} 4. e4 {[%clk 0:02:59]}  O-O {[%clk 0:03:01]} 5. Be2 {[%clk 0:02:59]}  d6 {[%clk 0:03:02]} 6. Bg5 {[%clk 0:02:59]}  c5 {[%clk 0:03:00]} 7. d5 {[%clk 0:03:00]}  b5 {[%clk 0:03:00]} 8. cxb5 {[%clk 0:02:59]}  a6 {[%clk 0:03:01]} 9. a4 {[%clk 0:03:00]}  Qa5 {[%clk 0:02:58]} 10. Bd2 {[%clk 0:03:00]}  axb5 {[%clk 0:02:57]} 11. Bxb5 {[%clk 0:02:58]}  Ba6 {[%clk 0:02:55]} 12. Nf3 {[%clk 0:02:48]}  Bxb5 {[%clk 0:02:55]} 13. Nxb5 {[%clk 0:02:47]}  Qb6 {[%clk 0:02:53]} 14. Qe2 {[%clk 0:02:44]}  Na6 {[%clk 0:02:38]} 15. O-O {[%clk 0:02:42]}  Nc7 {[%clk 0:02:38]} 16. Nxc7 {[%clk 0:02:30]}  Qxc7 {[%clk 0:02:39]} 17. Bc3 {[%clk 0:02:30]}  Rfb8 {[%clk 0:02:33]} 18. Rfd1 {[%clk 0:02:29]}  Nd7 {[%clk 0:02:33]} 19. Bxg7 {[%clk 0:02:28]}  Kxg7 {[%clk 0:02:34]} 20. h3 {[%clk 0:02:25]}  Rb4 {[%clk 0:02:33]} 21. a5 {[%clk 0:01:58]}  Rxa5 {[%clk 0:02:30]} 22. Rxa5 {[%clk 0:01:57]}  Qxa5 {[%clk 0:02:31]} 23. e5 {[%clk 0:01:58]}  Qb5 {[%clk 0:02:22]} 24. Qe3 {[%clk 0:01:46]}  Rb3 {[%clk 0:02:18]} 25. Qg5 {[%clk 0:01:42]}  f6 {[%clk 0:02:18]} 26. exf6+ {[%clk 0:01:42]}  exf6 {[%clk 0:02:18]} 27. Qf4 {[%clk 0:01:42]}  Ne5 {[%clk 0:02:19]} 28. Nxe5 {[%clk 0:01:38]}  fxe5 {[%clk 0:02:19]} 29. Qg5 {[%clk 0:01:35]}  Qd7 {[%clk 0:02:19]} 30. Rd2 {[%clk 0:01:29]}  h6 {[%clk 0:02:19]} 31. Qh4 {[%clk 0:01:29]}  Rb4 {[%clk 0:02:12]} 32. Qg3 {[%clk 0:01:25]}  Qf5 {[%clk 0:02:12]} 33. Qa3 {[%clk 0:01:21]}  Qf4 {[%clk 0:02:11]} 34. Qa7+ {[%clk 0:01:16]}  Kf6 {[%clk 0:02:11]} 35. Rd3 {[%clk 0:01:12]}  e4 {[%clk 0:02:10]} 36. Re3 {[%clk 0:00:55]}  Rxb2 {[%clk 0:02:08]} 37. Qa1 {[%clk 0:00:52]}  Qxf2+ {[%clk 0:02:09]} 38. Kh1 {[%clk 0:00:51]}  Qxg2# {[%clk 0:02:09]} 0-1


[Site "https://www.chess.com"]

[Event "Titled Tuesday Blitz April 19 Early 2022"]
[White "Fernandez Hernandez, Gerardo"]
[Black "Belenkaya, Dina"]
[WhiteFideId "2207400"]
[BlackFideId "24142654"]
[WhiteElo "2094"]
[BlackElo "2196"]
[Result "0-1"]
[Round "02"]
[TimeControl "180+1"]
[Date "2022.04.19"]
[WhiteClock "0:00:01"]
[BlackClock "0:00:24"]

1. e4 {[%clk 0:03:00]}  c6 {[%clk 0:02:59]} 2. d4 {[%clk 0:03:00]}  d5 {[%clk 0:03:00]} 3. exd5 {[%clk 0:02:59]}  cxd5 {[%clk 0:03:01]} 4. c4 {[%clk 0:02:59]}  Nc6 {[%clk 0:03:00]} 5. Nc3 {[%clk 0:02:59]}  Nf6 {[%clk 0:03:00]} 6. Bf4 {[%clk 0:02:58]}  e6 {[%clk 0:02:58]} 7. c5 {[%clk 0:02:57]}  Be7 {[%clk 0:02:55]} 8. Bb5 {[%clk 0:02:52]}  O-O {[%clk 0:02:55]} 9. Nf3 {[%clk 0:02:52]}  Bd7 {[%clk 0:02:48]} 10. Bxc6 {[%clk 0:02:51]}  bxc6 {[%clk 0:02:44]} 11. Qa4 {[%clk 0:02:47]}  Nh5 {[%clk 0:02:41]} 12. Bg3 {[%clk 0:02:21]}  f6 {[%clk 0:02:36]} 13. O-O {[%clk 0:02:13]}  Re8 {[%clk 0:02:27]} 14. Rfe1 {[%clk 0:02:03]}  Bf8 {[%clk 0:02:26]} 15. b4 {[%clk 0:01:54]}  a6 {[%clk 0:02:25]} 16. Qc2 {[%clk 0:01:42]}  g6 {[%clk 0:02:13]} 17. Na4 {[%clk 0:01:36]}  Bg7 {[%clk 0:02:04]} 18. Nb6 {[%clk 0:01:30]}  Ra7 {[%clk 0:02:03]} 19. Bd6 {[%clk 0:01:20]}  Bc8 {[%clk 0:01:43]} 20. g4 {[%clk 0:01:10]}  Rb7 {[%clk 0:01:36]} 21. Nxc8 {[%clk 0:00:59]}  Qxc8 {[%clk 0:01:36]} 22. gxh5 {[%clk 0:00:59]}  e5 {[%clk 0:01:37]} 23. hxg6 {[%clk 0:00:56]}  Qg4+ {[%clk 0:01:37]} 24. Kf1 {[%clk 0:00:50]}  Qxf3 {[%clk 0:01:37]} 25. gxh7+ {[%clk 0:00:47]}  Kh8 {[%clk 0:01:37]} 26. Qg6 {[%clk 0:00:41]}  Qh1+ {[%clk 0:01:15]} 27. Ke2 {[%clk 0:00:40]}  Qe4+ {[%clk 0:01:13]} 28. Qxe4 {[%clk 0:00:39]}  dxe4 {[%clk 0:01:14]} 29. dxe5 {[%clk 0:00:30]}  f5 {[%clk 0:01:14]} 30. a3 {[%clk 0:00:22]}  Bxe5 {[%clk 0:01:14]} 31. Bxe5+ {[%clk 0:00:21]}  Rxe5 {[%clk 0:01:15]} 32. Rad1 {[%clk 0:00:20]}  Re6 {[%clk 0:00:54]} 33. Rg1 {[%clk 0:00:16]}  Kxh7 {[%clk 0:00:54]} 34. Rd8 {[%clk 0:00:15]}  a5 {[%clk 0:00:43]} 35. Rb1 {[%clk 0:00:07]}  Rh6 {[%clk 0:00:38]} 36. Rd6 {[%clk 0:00:05]}  Rxh2 {[%clk 0:00:32]} 37. Rxc6 {[%clk 0:00:05]}  f4 {[%clk 0:00:33]} 38. Rf6 {[%clk 0:00:04]}  f3+ {[%clk 0:00:29]} 39. Ke3 {[%clk 0:00:03]}  Rd7 {[%clk 0:00:28]} 40. Rb3 {[%clk 0:00:02]}  Rd1 {[%clk 0:00:26]} 41. Kxe4 {[%clk 0:00:01]}  Rxf2 {[%clk 0:00:25]} 42. Rbxf3 {[%clk 0:00:01]}  Re1+ {[%clk 0:00:25]} 43. Kf4 {[%clk 0:00:01]}  Rxf3+ {[%clk 0:00:24]} 0-1


[Site "https://www.chess.com"]

[Event "Titled Tuesday Blitz April 19 Early 2022"]
[White "Fromm, Marius"]
[Black "Nazari, Arad"]
[WhiteFideId "12993190"]
[BlackFideId "12577324"]
[WhiteElo "2497"]
[BlackElo "2129"]
[Result "0-1"]
[Round "02"]
[TimeControl "180+1"]
[Date "2022.04.19"]
[WhiteClock "0:00:05"]
[BlackClock "0:00:19"]

1. e4 {[%clk 0:03:00]}  c5 {[%clk 0:02:56]} 2. Nf3 {[%clk 0:03:00]}  d6 {[%clk 0:02:57]} 3. d4 {[%clk 0:03:00]}  cxd4 {[%clk 0:02:58]} 4. Nxd4 {[%clk 0:03:01]}  Nf6 {[%clk 0:02:59]} 5. Nc3 {[%clk 0:03:02]}  a6 {[%clk 0:02:59]} 6. g3 {[%clk 0:03:02]}  e5 {[%clk 0:02:59]} 7. Nde2 {[%clk 0:03:02]}  Be6 {[%clk 0:03:00]} 8. a4 {[%clk 0:02:54]}  Be7 {[%clk 0:03:00]} 9. Bg2 {[%clk 0:02:54]}  O-O {[%clk 0:03:00]} 10. O-O {[%clk 0:02:53]}  a5 {[%clk 0:03:01]} 11. h3 {[%clk 0:02:44]}  Na6 {[%clk 0:03:01]} 12. Be3 {[%clk 0:02:43]}  Nb4 {[%clk 0:03:01]} 13. Nb5 {[%clk 0:02:32]}  d5 {[%clk 0:02:51]} 14. c3 {[%clk 0:02:26]}  Nc6 {[%clk 0:02:45]} 15. exd5 {[%clk 0:02:26]}  Bxd5 {[%clk 0:02:46]} 16. Bg5 {[%clk 0:02:17]}  Bc4 {[%clk 0:02:36]} 17. Re1 {[%clk 0:02:15]}  Qxd1 {[%clk 0:02:33]} 18. Raxd1 {[%clk 0:02:15]}  Rad8 {[%clk 0:02:28]} 19. Nc1 {[%clk 0:02:09]}  h6 {[%clk 0:02:26]} 20. Bxf6 {[%clk 0:02:04]}  gxf6 {[%clk 0:02:13]} 21. b3 {[%clk 0:01:53]}  Be6 {[%clk 0:02:13]} 22. Nc7 {[%clk 0:01:53]}  Bd6 {[%clk 0:01:52]} 23. Nxe6 {[%clk 0:01:48]}  fxe6 {[%clk 0:01:53]} 24. Nd3 {[%clk 0:01:43]}  Kf7 {[%clk 0:01:47]} 25. b4 {[%clk 0:01:30]}  axb4 {[%clk 0:01:46]} 26. cxb4 {[%clk 0:01:31]}  Nxb4 {[%clk 0:01:45]} 27. Bxb7 {[%clk 0:01:18]}  Nc2 {[%clk 0:01:45]} 28. Rf1 {[%clk 0:01:10]}  f5 {[%clk 0:01:39]} 29. a5 {[%clk 0:00:58]}  e4 {[%clk 0:01:38]} 30. Nf4 {[%clk 0:00:57]}  e3 {[%clk 0:01:27]} 31. Rc1 {[%clk 0:00:38]}  exf2+ {[%clk 0:01:15]} 32. Rxf2 {[%clk 0:00:39]}  Na3 {[%clk 0:00:55]} 33. a6 {[%clk 0:00:37]}  Nb5 {[%clk 0:00:55]} 34. Kg2 {[%clk 0:00:33]}  Rg8 {[%clk 0:00:48]} 35. Rd1 {[%clk 0:00:25]}  Rxg3+ {[%clk 0:00:31]} 36. Kxg3 {[%clk 0:00:19]}  Bxf4+ {[%clk 0:00:30]} 37. Kxf4 {[%clk 0:00:18]}  Rxd1 {[%clk 0:00:31]} 38. Rb2 {[%clk 0:00:17]}  Na7 {[%clk 0:00:31]} 39. Rc2 {[%clk 0:00:15]}  Kf6 {[%clk 0:00:29]} 40. Rc7 {[%clk 0:00:10]}  Rd3 {[%clk 0:00:28]} 41. Rc5 {[%clk 0:00:05]}  h5 {[%clk 0:00:19]} 42. Bf3 {[%clk 0:00:05]}  Ra3 {[%clk 0:00:19]} 0-1


[Site "https://www.chess.com"]

[Event "Titled Tuesday Blitz April 19 Early 2022"]
[White "Gabrielian, Artur"]
[Black "Gracia Alvarez, Gerardo Antonio"]
[WhiteFideId "4131002"]
[BlackFideId "5109124"]
[WhiteElo "2440"]
[BlackElo "2139"]
[Result "1-0"]
[Round "02"]
[TimeControl "180+1"]
[Date "2022.04.19"]
[WhiteClock "0:01:20"]
[BlackClock "0:00:25"]

1. c4 {[%clk 0:03:00]}  c5 {[%clk 0:02:58]} 2. Nc3 {[%clk 0:02:57]}  g6 {[%clk 0:02:57]} 3. g3 {[%clk 0:02:54]}  Bg7 {[%clk 0:02:56]} 4. Bg2 {[%clk 0:02:55]}  Nc6 {[%clk 0:02:56]} 5. Nf3 {[%clk 0:02:55]}  e6 {[%clk 0:02:56]} 6. O-O {[%clk 0:02:47]}  Nge7 {[%clk 0:02:56]} 7. e3 {[%clk 0:02:45]}  O-O {[%clk 0:02:55]} 8. d4 {[%clk 0:02:44]}  cxd4 {[%clk 0:02:56]} 9. Nxd4 {[%clk 0:02:44]}  Nxd4 {[%clk 0:02:48]} 10. exd4 {[%clk 0:02:44]}  d5 {[%clk 0:02:48]} 11. cxd5 {[%clk 0:02:42]}  Nxd5 {[%clk 0:02:48]} 12. Re1 {[%clk 0:02:36]}  Nxc3 {[%clk 0:02:17]} 13. bxc3 {[%clk 0:02:35]}  Qc7 {[%clk 0:02:18]} 14. Qd3 {[%clk 0:02:30]}  Bd7 {[%clk 0:02:16]} 15. Bf4 {[%clk 0:02:28]}  Qc8 {[%clk 0:02:16]} 16. h4 {[%clk 0:02:27]}  Bc6 {[%clk 0:02:15]} 17. h5 {[%clk 0:02:21]}  Bxg2 {[%clk 0:02:14]} 18. Kxg2 {[%clk 0:02:22]}  Qc6+ {[%clk 0:02:14]} 19. Kg1 {[%clk 0:02:20]}  Rfc8 {[%clk 0:02:14]} 20. Re3 {[%clk 0:02:18]}  b5 {[%clk 0:02:06]} 21. Rae1 {[%clk 0:02:16]}  Qc4 {[%clk 0:02:05]} 22. Qd2 {[%clk 0:02:15]}  b4 {[%clk 0:02:00]} 23. cxb4 {[%clk 0:02:14]}  Qxd4 {[%clk 0:01:45]} 24. Qxd4 {[%clk 0:02:00]}  Bxd4 {[%clk 0:01:46]} 25. Rd3 {[%clk 0:02:00]}  Bc3 {[%clk 0:01:41]} 26. Re4 {[%clk 0:01:56]}  gxh5 {[%clk 0:01:37]} 27. b5 {[%clk 0:01:52]}  Bf6 {[%clk 0:01:29]} 28. a4 {[%clk 0:01:49]}  Rd8 {[%clk 0:01:16]} 29. Rxd8+ {[%clk 0:01:46]}  Rxd8 {[%clk 0:01:15]} 30. Be3 {[%clk 0:01:44]}  Rd7 {[%clk 0:01:12]} 31. a5 {[%clk 0:01:43]}  Bd8 {[%clk 0:01:09]} 32. a6 {[%clk 0:01:39]}  Rd1+ {[%clk 0:00:37]} 33. Kg2 {[%clk 0:01:39]}  Rb1 {[%clk 0:00:38]} 34. Rc4 {[%clk 0:01:27]}  Kg7 {[%clk 0:00:30]} 35. Rc8 {[%clk 0:01:21]}  Ba5 {[%clk 0:00:26]} 36. Bxa7 {[%clk 0:01:20]}  Rxb5 {[%clk 0:00:25]} 37. Bd4+ {[%clk 0:01:20]}  e5 {[%clk 0:00:25]} 38. a7 {[%clk 0:01:20]} 1-0


[Site "https://www.chess.com"]

[Event "Titled Tuesday Blitz April 19 Early 2022"]
[White "Golubeva, Oksana"]
[Black "Rodchenkov, Vitaly"]
[WhiteFideId "4170164"]
[BlackFideId "4152964"]
[WhiteElo "2162"]
[BlackElo "2337"]
[Result "1-0"]
[Round "02"]
[TimeControl "180+1"]
[Date "2022.04.19"]
[WhiteClock "0:01:05"]
[BlackClock "0:01:07"]

1. Nf3 {[%clk 0:03:00]}  Nf6 {[%clk 0:02:57]} 2. e3 {[%clk 0:03:00]}  e6 {[%clk 0:02:56]} 3. c4 {[%clk 0:02:58]}  b6 {[%clk 0:02:54]} 4. Nc3 {[%clk 0:02:58]}  Bb7 {[%clk 0:02:55]} 5. d4 {[%clk 0:02:57]}  Bb4 {[%clk 0:02:54]} 6. g4 {[%clk 0:02:53]}  h6 {[%clk 0:02:46]} 7. Rg1 {[%clk 0:02:52]}  Bxc3+ {[%clk 0:02:45]} 8. bxc3 {[%clk 0:02:52]}  c5 {[%clk 0:02:45]} 9. h4 {[%clk 0:02:39]}  d6 {[%clk 0:02:44]} 10. g5 {[%clk 0:02:38]}  hxg5 {[%clk 0:02:44]} 11. hxg5 {[%clk 0:02:39]}  Ne4 {[%clk 0:02:43]} 12. g6 {[%clk 0:02:39]}  f6 {[%clk 0:02:38]} 13. Bb2 {[%clk 0:02:36]}  Nd7 {[%clk 0:02:36]} 14. Nd2 {[%clk 0:02:34]}  Rh6 {[%clk 0:02:30]} 15. Bd3 {[%clk 0:02:31]}  Nxd2 {[%clk 0:02:27]} 16. Qxd2 {[%clk 0:02:32]}  Qe7 {[%clk 0:02:23]} 17. a4 {[%clk 0:02:29]}  a5 {[%clk 0:02:22]} 18. Rb1 {[%clk 0:02:27]}  Kd8 {[%clk 0:02:21]} 19. Bc1 {[%clk 0:02:26]}  Kc7 {[%clk 0:02:22]} 20. Qb2 {[%clk 0:02:22]}  Rah8 {[%clk 0:02:20]} 21. Ke2 {[%clk 0:02:14]}  Qe8 {[%clk 0:02:17]} 22. e4 {[%clk 0:02:12]}  f5 {[%clk 0:02:15]} 23. Bxh6 {[%clk 0:02:10]}  Rxh6 {[%clk 0:02:12]} 24. exf5 {[%clk 0:01:53]}  exf5+ {[%clk 0:02:12]} 25. Kd2 {[%clk 0:01:53]}  Rh2 {[%clk 0:01:58]} 26. Rbf1 {[%clk 0:01:49]}  Qh8 {[%clk 0:01:54]} 27. Bxf5 {[%clk 0:01:43]}  Qh6+ {[%clk 0:01:52]} 28. Kc2 {[%clk 0:01:42]}  Qf4 {[%clk 0:01:53]} 29. Bxd7 {[%clk 0:01:37]}  Rxf2+ {[%clk 0:01:45]} 30. Kb3 {[%clk 0:01:30]}  Rxb2+ {[%clk 0:01:43]} 31. Kxb2 {[%clk 0:01:25]}  Qd2+ {[%clk 0:01:42]} 32. Kb3 {[%clk 0:01:25]}  Kxd7 {[%clk 0:01:41]} 33. Rf7+ {[%clk 0:01:24]}  Kc8 {[%clk 0:01:39]} 34. Rxg7 {[%clk 0:01:20]}  Be4 {[%clk 0:01:37]} 35. Rg8+ {[%clk 0:01:15]}  Kd7 {[%clk 0:01:37]} 36. Rg7+ {[%clk 0:01:15]}  Ke6 {[%clk 0:01:36]} 37. d5+ {[%clk 0:01:12]}  Ke5 {[%clk 0:01:17]} 38. Re7+ {[%clk 0:01:11]}  Kf5 {[%clk 0:01:17]} 39. Rxe4 {[%clk 0:01:07]}  Kxe4 {[%clk 0:01:14]} 40. g7 {[%clk 0:01:07]}  Kd3 {[%clk 0:01:10]} 41. Rg3+ {[%clk 0:01:05]}  Ke2 {[%clk 0:01:09]} 42. Rg2+ {[%clk 0:01:04]}  Kd1 {[%clk 0:01:09]} 43. Rxd2+ {[%clk 0:01:05]}  Kxd2 {[%clk 0:01:08]} 44. g8=Q {[%clk 0:01:05]}  Kd1 {[%clk 0:01:07]} 1-0


[Site "https://www.chess.com"]